[Event "Titled Tuesday Blitz May 9 Late 2023"]
[White "K2JW"]
[Black "Rodriguez Santiago, Jaime"]
[BlackFideId "3100898"]
[WhiteElo "2397"]
[BlackElo "2025"]
[Result "0-1"]
[Round "05"]
[TimeControl "180+2"]
[Date "2023.05.09"]
[WhiteClock "0:00:00"]
[BlackClock "0:00:50"]

1. d4 {[%clk 0:03:00]}  Nf6 {[%clk 0:02:59]} 2. c4 {[%clk 0:03:01]}  e6 {[%clk 0:02:59]} 3. Nf3 {[%clk 0:03:00]}  d5 {[%clk 0:02:58]} 4. Nc3 {[%clk 0:03:01]}  c5 {[%clk 0:02:58]} 5. cxd5 {[%clk 0:02:59]}  Nxd5 {[%clk 0:02:58]} 6. e4 {[%clk 0:03:00]}  Nxc3 {[%clk 0:02:58]} 7. bxc3 {[%clk 0:03:01]}  cxd4 {[%clk 0:02:58]} 8. cxd4 {[%clk 0:03:02]}  Bb4+ {[%clk 0:02:59]} 9. Bd2 {[%clk 0:03:02]}  Bxd2+ {[%clk 0:02:59]} 10. Qxd2 {[%clk 0:03:03]}  O-O {[%clk 0:03:00]} 11. Bc4 {[%clk 0:03:04]}  Nd7 {[%clk 0:03:00]} 12. O-O {[%clk 0:03:03]}  b6 {[%clk 0:03:00]} 13. Rad1 {[%clk 0:03:02]}  Bb7 {[%clk 0:02:58]} 14. Rfe1 {[%clk 0:03:03]}  Rc8 {[%clk 0:02:58]} 15. Bb3 {[%clk 0:03:03]}  h6 {[%clk 0:02:55]} 16. h3 {[%clk 0:02:59]}  Qc7 {[%clk 0:02:54]} 17. d5 {[%clk 0:02:48]}  Nc5 {[%clk 0:02:39]} 18. d6 {[%clk 0:01:58]}  Qd8 {[%clk 0:02:27]} 19. Bc2 {[%clk 0:01:40]}  Nd7 {[%clk 0:01:55]} 20. Bb1 {[%clk 0:01:08]}  e5 {[%clk 0:01:48]} 21. a3 {[%clk 0:00:41]}  Qf6 {[%clk 0:01:44]} 22. Ba2 {[%clk 0:00:36]}  Rfd8 {[%clk 0:01:42]} 23. Bd5 {[%clk 0:00:32]}  Nc5 {[%clk 0:01:37]} 24. Re3 {[%clk 0:00:13]}  Rd7 {[%clk 0:01:32]} 25. Bxb7 {[%clk 0:00:10]}  Nxb7 {[%clk 0:01:31]} 26. Rd3 {[%clk 0:00:11]}  Rcd8 {[%clk 0:01:29]} 27. Qb2 {[%clk 0:00:06]}  Rxd6 {[%clk 0:01:07]} 28. Rxd6 {[%clk 0:00:06]}  Rxd6 {[%clk 0:01:07]} 29. Rxd6 {[%clk 0:00:05]}  Nxd6 {[%clk 0:01:08]} 30. Qxe5 {[%clk 0:00:03]}  Qxe5 {[%clk 0:01:07]} 31. Nxe5 {[%clk 0:00:04]}  Nxe4 {[%clk 0:01:07]} 32. Nc6 {[%clk 0:00:04]}  a5 {[%clk 0:01:03]} 33. Ne7+ {[%clk 0:00:03]}  Kf8 {[%clk 0:01:03]} 34. Nd5 {[%clk 0:00:03]}  b5 {[%clk 0:01:00]} 35. f3 {[%clk 0:00:02]}  Nc5 {[%clk 0:00:55]} 36. Kf2 {[%clk 0:00:00]}  Ne6 {[%clk 0:00:50]} 0-1


[Site "https://www.chess.com"]

[Event "Titled Tuesday Blitz May 9 Late 2023"]
[White "Gatterer, Florian"]
[Black "Leschinsky, Gary"]
[WhiteFideId "811688"]
[BlackFideId "30951321"]
[WhiteElo "2221"]
[BlackElo "1855"]
[Result "1-0"]
[Round "05"]
[TimeControl "180+2"]
[Date "2023.05.09"]
[WhiteClock "0:00:16"]
[BlackClock "0:01:18"]

1. d4 {[%clk 0:02:35]}  Nf6 {[%clk 0:02:57]} 2. Bf4 {[%clk 0:02:32]}  e6 {[%clk 0:02:58]} 3. Nc3 {[%clk 0:02:29]}  d5 {[%clk 0:02:57]} 4. Nb5 {[%clk 0:02:28]}  Bb4+ {[%clk 0:02:52]} 5. c3 {[%clk 0:02:26]}  Ba5 {[%clk 0:02:52]} 6. a4 {[%clk 0:02:26]}  a6 {[%clk 0:02:50]} 7. b4 {[%clk 0:02:25]}  Nc6 {[%clk 0:02:50]} 8. bxa5 {[%clk 0:02:22]}  axb5 {[%clk 0:02:49]} 9. axb5 {[%clk 0:02:21]}  Nxa5 {[%clk 0:02:49]} 10. e3 {[%clk 0:02:16]}  O-O {[%clk 0:02:48]} 11. Nf3 {[%clk 0:02:15]}  Bd7 {[%clk 0:02:45]} 12. Bd3 {[%clk 0:02:08]}  c5 {[%clk 0:02:42]} 13. bxc6 {[%clk 0:01:59]}  Bxc6 {[%clk 0:02:38]} 14. O-O {[%clk 0:01:54]}  Nd7 {[%clk 0:02:37]} 15. Bd6 {[%clk 0:01:49]}  Re8 {[%clk 0:02:36]} 16. Bb4 {[%clk 0:01:46]}  Nc4 {[%clk 0:02:34]} 17. Qc2 {[%clk 0:01:31]}  h6 {[%clk 0:02:32]} 18. Bxc4 {[%clk 0:01:23]}  dxc4 {[%clk 0:02:18]} 19. e4 {[%clk 0:01:23]}  Nf6 {[%clk 0:02:11]} 20. Nd2 {[%clk 0:01:22]}  b5 {[%clk 0:02:06]} 21. Rfb1 {[%clk 0:01:17]}  Qd7 {[%clk 0:01:47]} 22. f3 {[%clk 0:01:13]}  Rxa1 {[%clk 0:01:43]} 23. Rxa1 {[%clk 0:01:13]}  Ra8 {[%clk 0:01:44]} 24. Rxa8+ {[%clk 0:01:05]}  Bxa8 {[%clk 0:01:45]} 25. Qa2 {[%clk 0:01:04]}  Bc6 {[%clk 0:01:33]} 26. Qa6 {[%clk 0:00:58]}  Qb7 {[%clk 0:01:32]} 27. Qa5 {[%clk 0:00:57]}  Qa8 {[%clk 0:01:30]} 28. Qc7 {[%clk 0:00:53]}  Qb7 {[%clk 0:01:25]} 29. Qd8+ {[%clk 0:00:48]}  Kh7 {[%clk 0:01:25]} 30. Be7 {[%clk 0:00:41]}  Nd7 {[%clk 0:01:22]} 31. Qe8 {[%clk 0:00:19]}  Kg6 {[%clk 0:01:19]} 32. Qd8 {[%clk 0:00:17]}  Nf6 {[%clk 0:01:18]} 33. Bxf6 {[%clk 0:00:17]}  gxf6 {[%clk 0:01:18]} 34. Qg8+ {[%clk 0:00:16]}  Kh5 {[%clk 0:01:18]} 35. Qg4# {[%clk 0:00:16]} 1-0


[Site "https://www.chess.com"]

[Event "Titled Tuesday Blitz May 9 Late 2023"]
[White "Skaric, Djuro"]
[Black "Escalante Ramirez, Rafael"]
[WhiteFideId "934569"]
[BlackFideId "3900177"]
[WhiteElo "2282"]
[BlackElo "2246"]
[Result "1-0"]
[Round "05"]
[TimeControl "180+2"]
[Date "2023.05.09"]
[WhiteClock "0:01:22"]
[BlackClock "0:00:00"]

1. g3 {[%clk 0:03:00]}  Nf6 {[%clk 0:02:55]} 2. Bg2 {[%clk 0:03:00]}  c5 {[%clk 0:02:54]} 3. d3 {[%clk 0:03:01]}  g6 {[%clk 0:02:48]} 4. Nc3 {[%clk 0:03:00]}  Bg7 {[%clk 0:02:48]} 5. e4 {[%clk 0:02:59]}  d6 {[%clk 0:02:47]} 6. h3 {[%clk 0:02:59]}  Nc6 {[%clk 0:02:45]} 7. f4 {[%clk 0:02:58]}  Rb8 {[%clk 0:02:41]} 8. g4 {[%clk 0:02:58]}  O-O {[%clk 0:02:35]} 9. Nge2 {[%clk 0:02:57]}  Ne8 {[%clk 0:02:23]} 10. O-O {[%clk 0:02:50]}  b5 {[%clk 0:02:16]} 11. Ng3 {[%clk 0:02:45]}  b4 {[%clk 0:02:13]} 12. Nce2 {[%clk 0:02:41]}  Nc7 {[%clk 0:01:49]} 13. g5 {[%clk 0:02:38]}  Nb5 {[%clk 0:01:42]} 14. e5 {[%clk 0:02:26]}  Bb7 {[%clk 0:01:30]} 15. Ne4 {[%clk 0:02:24]}  Ncd4 {[%clk 0:01:19]} 16. exd6 {[%clk 0:02:15]}  exd6 {[%clk 0:01:16]} 17. N2g3 {[%clk 0:02:14]}  Ne6 {[%clk 0:00:43]} 18. f5 {[%clk 0:02:08]}  Bd4+ {[%clk 0:00:28]} 19. Kh1 {[%clk 0:02:03]}  Nec7 {[%clk 0:00:23]} 20. Qg4 {[%clk 0:01:51]}  d5 {[%clk 0:00:19]} 21. Nf6+ {[%clk 0:01:49]}  Bxf6 {[%clk 0:00:18]} 22. gxf6 {[%clk 0:01:49]}  Qxf6 {[%clk 0:00:15]} 23. Bh6 {[%clk 0:01:36]}  Rfe8 {[%clk 0:00:15]} 24. Nh5 {[%clk 0:01:34]}  Qd4 {[%clk 0:00:11]} 25. fxg6 {[%clk 0:01:33]}  hxg6 {[%clk 0:00:07]} 26. Nf6+ {[%clk 0:01:32]}  Kh8 {[%clk 0:00:05]} 27. Rf4 {[%clk 0:01:24]}  Qxb2 {[%clk 0:00:00]} 28. Raf1 {[%clk 0:01:22]} 1-0


[Site "https://www.chess.com"]

[Event "Titled Tuesday Blitz May 9 Late 2023"]
[White "Smith, Garrett L"]
[Black "micke12a"]
[WhiteFideId "2024829"]
[WhiteElo "2235"]
[BlackElo "2364"]
[Result "0-1"]
[Round "05"]
[TimeControl "180+2"]
[Date "2023.05.09"]
[WhiteClock "0:00:00"]
[BlackClock "0:00:02"]

1. e4 {[%clk 0:03:00]}  c5 {[%clk 0:02:59]} 2. a3 {[%clk 0:03:00]}  Nc6 {[%clk 0:02:54]} 3. b4 {[%clk 0:03:00]}  b6 {[%clk 0:02:55]} 4. b5 {[%clk 0:02:58]}  Nb8 {[%clk 0:02:52]} 5. Bb2 {[%clk 0:02:54]}  Bb7 {[%clk 0:02:52]} 6. d3 {[%clk 0:02:51]}  d6 {[%clk 0:02:51]} 7. g3 {[%clk 0:02:50]}  Nf6 {[%clk 0:02:51]} 8. Bg2 {[%clk 0:02:49]}  g6 {[%clk 0:02:50]} 9. Ne2 {[%clk 0:02:49]}  Bg7 {[%clk 0:02:51]} 10. O-O {[%clk 0:02:48]}  O-O {[%clk 0:02:51]} 11. Nd2 {[%clk 0:02:37]}  Nbd7 {[%clk 0:02:51]} 12. h3 {[%clk 0:02:35]}  a6 {[%clk 0:02:50]} 13. a4 {[%clk 0:02:32]}  axb5 {[%clk 0:02:49]} 14. axb5 {[%clk 0:02:33]}  Qc7 {[%clk 0:02:48]} 15. f4 {[%clk 0:02:31]}  e6 {[%clk 0:02:47]} 16. g4 {[%clk 0:02:27]}  Rxa1 {[%clk 0:02:37]} 17. Qxa1 {[%clk 0:02:14]}  Ra8 {[%clk 0:02:37]} 18. Qb1 {[%clk 0:02:15]}  c4 {[%clk 0:02:27]} 19. g5 {[%clk 0:01:48]}  cxd3 {[%clk 0:02:24]} 20. cxd3 {[%clk 0:01:48]}  Nh5 {[%clk 0:02:21]} 21. Rc1 {[%clk 0:01:45]}  Qd8 {[%clk 0:02:17]} 22. Bf3 {[%clk 0:01:40]}  e5 {[%clk 0:02:11]} 23. Bxh5 {[%clk 0:01:34]}  gxh5 {[%clk 0:02:11]} 24. h4 {[%clk 0:01:32]}  exf4 {[%clk 0:02:04]} 25. Bxg7 {[%clk 0:01:31]}  Kxg7 {[%clk 0:02:01]} 26. Nxf4 {[%clk 0:01:31]}  Ne5 {[%clk 0:01:58]} 27. Nxh5+ {[%clk 0:01:31]}  Kg8 {[%clk 0:01:52]} 28. Nf6+ {[%clk 0:01:27]}  Kg7 {[%clk 0:01:51]} 29. d4 {[%clk 0:01:27]}  Ng6 {[%clk 0:01:44]} 30. h5 {[%clk 0:01:20]}  Nf4 {[%clk 0:01:44]} 31. h6+ {[%clk 0:01:04]}  Kh8 {[%clk 0:01:36]} 32. e5 {[%clk 0:00:58]}  Ng6 {[%clk 0:01:21]} 33. Nc4 {[%clk 0:00:37]}  dxe5 {[%clk 0:01:18]} 34. d5 {[%clk 0:00:30]}  Rc8 {[%clk 0:00:43]} 35. Kf2 {[%clk 0:00:16]}  Qe7 {[%clk 0:00:41]} 36. Nxb6 {[%clk 0:00:13]}  Rd8 {[%clk 0:00:30]} 37. Qb2 {[%clk 0:00:12]}  Nf4 {[%clk 0:00:23]} 38. Qc2 {[%clk 0:00:10]}  Ng6 {[%clk 0:00:19]} 39. Qf5 {[%clk 0:00:10]}  Qb4 {[%clk 0:00:15]} 40. Nc4 {[%clk 0:00:10]}  Qc5+ {[%clk 0:00:12]} 41. Kg3 {[%clk 0:00:10]}  Bxd5 {[%clk 0:00:08]} 42. Nxe5 {[%clk 0:00:07]}  Qd6 {[%clk 0:00:05]} 43. Ng4 {[%clk 0:00:03]}  Re8 {[%clk 0:00:03]} 44. Re1 {[%clk 0:00:03]}  Be6 {[%clk 0:00:03]} 45. Qf6+ {[%clk 0:00:03]}  Kg8 {[%clk 0:00:04]} 46. Kh3 {[%clk 0:00:02]}  Bxg4+ {[%clk 0:00:03]} 47. Kxg4 {[%clk 0:00:01]}  Qxf6 {[%clk 0:00:03]} 48. gxf6 {[%clk 0:00:00]}  Rxe5 {[%clk 0:00:02]} 0-1


[Site "https://www.chess.com"]

[Event "Titled Tuesday Blitz May 9 Late 2023"]
[White "Chemin, Justo Reinaldo"]
[Black "Figorito, Nick"]
[WhiteFideId "2101580"]
[BlackFideId "30923689"]
[WhiteElo "1940"]
[BlackElo "2361"]
[Result "1/2-1/2"]
[Round "05"]
[TimeControl "180+2"]
[Date "2023.05.09"]
[WhiteClock "0:00:11"]
[BlackClock "0:00:03"]

1. d4 {[%clk 0:03:00]}  Nf6 {[%clk 0:03:00]} 2. g4 {[%clk 0:03:00]}  Nxg4 {[%clk 0:02:59]} 3. e4 {[%clk 0:02:59]}  d5 {[%clk 0:02:59]} 4. h3 {[%clk 0:02:54]}  Nf6 {[%clk 0:02:53]} 5. e5 {[%clk 0:02:55]}  Nfd7 {[%clk 0:02:47]} 6. f4 {[%clk 0:02:49]}  e6 {[%clk 0:02:46]} 7. Nf3 {[%clk 0:02:50]}  c5 {[%clk 0:02:46]} 8. c3 {[%clk 0:02:49]}  Nc6 {[%clk 0:02:45]} 9. Be3 {[%clk 0:02:49]}  Qb6 {[%clk 0:02:44]} 10. Qb3 {[%clk 0:02:36]}  Qxb3 {[%clk 0:02:39]} 11. axb3 {[%clk 0:02:36]}  cxd4 {[%clk 0:02:39]} 12. Bxd4 {[%clk 0:02:24]}  Nxd4 {[%clk 0:02:34]} 13. Nxd4 {[%clk 0:02:23]}  Bc5 {[%clk 0:02:27]} 14. Nb5 {[%clk 0:02:14]}  O-O {[%clk 0:02:25]} 15. Bd3 {[%clk 0:02:00]}  a6 {[%clk 0:02:01]} 16. Nd4 {[%clk 0:01:57]}  Bxd4 {[%clk 0:02:01]} 17. cxd4 {[%clk 0:01:56]}  f6 {[%clk 0:01:55]} 18. Nd2 {[%clk 0:01:46]}  fxe5 {[%clk 0:01:53]} 19. fxe5 {[%clk 0:01:46]}  Nb8 {[%clk 0:01:47]} 20. Ke2 {[%clk 0:01:39]}  Nc6 {[%clk 0:01:46]} 21. Ke3 {[%clk 0:01:39]}  Bd7 {[%clk 0:01:42]} 22. Rhg1 {[%clk 0:01:34]}  Rf7 {[%clk 0:01:33]} 23. Rg3 {[%clk 0:01:30]}  Raf8 {[%clk 0:01:32]} 24. Rag1 {[%clk 0:01:29]}  g6 {[%clk 0:01:23]} 25. Nf3 {[%clk 0:01:17]}  Ne7 {[%clk 0:01:13]} 26. h4 {[%clk 0:01:05]}  Nf5+ {[%clk 0:01:11]} 27. Bxf5 {[%clk 0:01:04]}  Rxf5 {[%clk 0:01:12]} 28. Ng5 {[%clk 0:00:54]}  Rf2 {[%clk 0:00:41]} 29. h5 {[%clk 0:00:51]}  Rxb2 {[%clk 0:00:41]} 30. hxg6 {[%clk 0:00:51]}  Rxb3+ {[%clk 0:00:41]} 31. Kd2 {[%clk 0:00:48]}  Rxg3 {[%clk 0:00:25]} 32. gxh7+ {[%clk 0:00:48]}  Kh8 {[%clk 0:00:23]} 33. Rxg3 {[%clk 0:00:49]}  a5 {[%clk 0:00:14]} 34. Rc3 {[%clk 0:00:19]}  Rc8 {[%clk 0:00:06]} 35. Rh3 {[%clk 0:00:13]}  Rf8 {[%clk 0:00:02]} 36. Rc3 {[%clk 0:00:12]}  Rc8 {[%clk 0:00:03]} 37. Rh3 {[%clk 0:00:12]}  Rf8 {[%clk 0:00:03]} 38. Rc3 {[%clk 0:00:11]} 1/2-1/2


[Site "https://www.chess.com"]

[Event "Titled Tuesday Blitz May 9 Late 2023"]
[White "Gerbelli Neto, Eduardo"]
[Black "Barria Santos, Jose Guilherme"]
[WhiteFideId "2103281"]
[BlackFideId "1939300"]
[WhiteElo "2178"]
[BlackElo "2266"]
[Result "1-0"]
[Round "05"]
[TimeControl "180+2"]
[Date "2023.05.09"]
[WhiteClock "0:00:09"]
[BlackClock "0:00:10"]

1. e4 {[%clk 0:03:00]}  a6 {[%clk 0:02:54]} 2. c4 {[%clk 0:03:00]}  e5 {[%clk 0:02:53]} 3. Nc3 {[%clk 0:03:00]}  c6 {[%clk 0:02:51]} 4. Nf3 {[%clk 0:02:54]}  d6 {[%clk 0:02:45]} 5. d4 {[%clk 0:02:54]}  exd4 {[%clk 0:02:45]} 6. Qxd4 {[%clk 0:02:54]}  b5 {[%clk 0:02:42]} 7. Be3 {[%clk 0:02:39]}  b4 {[%clk 0:02:33]} 8. Na4 {[%clk 0:02:25]}  c5 {[%clk 0:02:24]} 9. Qd2 {[%clk 0:02:06]}  Bd7 {[%clk 0:02:24]} 10. b3 {[%clk 0:01:54]}  Nf6 {[%clk 0:02:23]} 11. Bd3 {[%clk 0:01:49]}  Bxa4 {[%clk 0:02:16]} 12. bxa4 {[%clk 0:01:49]}  Nc6 {[%clk 0:02:15]} 13. O-O {[%clk 0:01:48]}  Be7 {[%clk 0:02:15]} 14. Rad1 {[%clk 0:01:46]}  O-O {[%clk 0:02:15]} 15. Bc2 {[%clk 0:01:45]}  Qc8 {[%clk 0:02:11]} 16. Bf4 {[%clk 0:01:41]}  Rd8 {[%clk 0:02:08]} 17. h3 {[%clk 0:01:41]}  h6 {[%clk 0:02:09]} 18. Qe3 {[%clk 0:01:37]}  Qe6 {[%clk 0:02:08]} 19. Qd3 {[%clk 0:01:24]}  Ne5 {[%clk 0:02:07]} 20. Bxe5 {[%clk 0:01:18]}  dxe5 {[%clk 0:02:08]} 21. Qe2 {[%clk 0:01:18]}  Rd4 {[%clk 0:01:55]} 22. Nxd4 {[%clk 0:01:16]}  cxd4 {[%clk 0:01:55]} 23. f4 {[%clk 0:01:04]}  Nd7 {[%clk 0:01:55]} 24. f5 {[%clk 0:01:04]}  Qb6 {[%clk 0:01:54]} 25. Bd3 {[%clk 0:01:03]}  Bg5 {[%clk 0:01:50]} 26. Qb2 {[%clk 0:00:54]}  Nc5 {[%clk 0:01:47]} 27. Qc2 {[%clk 0:00:45]}  a5 {[%clk 0:01:47]} 28. Kh1 {[%clk 0:00:41]}  Qc6 {[%clk 0:01:47]} 29. Qe2 {[%clk 0:00:39]}  Qxa4 {[%clk 0:01:46]} 30. g3 {[%clk 0:00:32]}  Qc6 {[%clk 0:01:45]} 31. h4 {[%clk 0:00:31]}  Bf6 {[%clk 0:01:46]} 32. Kh2 {[%clk 0:00:31]}  a4 {[%clk 0:01:45]} 33. Kh3 {[%clk 0:00:27]}  b3 {[%clk 0:01:35]} 34. Rb1 {[%clk 0:00:27]}  a3 {[%clk 0:01:26]} 35. axb3 {[%clk 0:00:26]}  a2 {[%clk 0:01:18]} 36. Ra1 {[%clk 0:00:26]}  Qb7 {[%clk 0:01:07]} 37. Qc2 {[%clk 0:00:18]}  Ra3 {[%clk 0:01:03]} 38. Rfd1 {[%clk 0:00:17]}  Qb4 {[%clk 0:01:01]} 39. Rxa2 {[%clk 0:00:16]}  Rxb3 {[%clk 0:00:56]} 40. Rb1 {[%clk 0:00:13]}  Rxb1 {[%clk 0:00:42]} 41. Qxb1 {[%clk 0:00:14]}  Qxb1 {[%clk 0:00:28]} 42. Bxb1 {[%clk 0:00:13]}  h5 {[%clk 0:00:18]} 43. Ra8+ {[%clk 0:00:13]}  Kh7 {[%clk 0:00:18]} 44. Rc8 {[%clk 0:00:14]}  Nb3 {[%clk 0:00:16]} 45. Bd3 {[%clk 0:00:13]}  Be7 {[%clk 0:00:16]} 46. g4 {[%clk 0:00:12]}  hxg4+ {[%clk 0:00:16]} 47. Kxg4 {[%clk 0:00:13]}  Nc1 {[%clk 0:00:15]} 48. Bc2 {[%clk 0:00:11]}  d3 {[%clk 0:00:13]} 49. Bd1 {[%clk 0:00:12]}  Na2 {[%clk 0:00:12]} 50. Kf3 {[%clk 0:00:10]}  Nc3 {[%clk 0:00:13]} 51. Bb3 {[%clk 0:00:09]}  d2 {[%clk 0:00:13]} 52. c5 {[%clk 0:00:08]}  d1=Q+ {[%clk 0:00:13]} 53. Bxd1 {[%clk 0:00:09]}  Nxd1 {[%clk 0:00:14]} 54. c6 {[%clk 0:00:09]}  Bd6 {[%clk 0:00:13]} 55. Rd8 {[%clk 0:00:09]}  Bc7 {[%clk 0:00:11]} 56. Rxd1 {[%clk 0:00:09]}  Kh6 {[%clk 0:00:11]} 57. Rd7 {[%clk 0:00:09]}  Ba5 {[%clk 0:00:10]} 58. Rxf7 {[%clk 0:00:09]} 1-0


[Site "https://www.chess.com"]

[Event "Titled Tuesday Blitz May 9 Late 2023"]
[White "ritanovikova"]
[Black "Hoffmann, Asa"]
[BlackFideId "2001470"]
[WhiteElo "2193"]
[BlackElo "2117"]
[Result "0-1"]
[Round "05"]
[TimeControl "180+2"]
[Date "2023.05.09"]
[WhiteClock "0:00:42"]
[BlackClock "0:00:53"]

1. e4 {[%clk 0:02:59]}  d6 {[%clk 0:02:56]} 2. d4 {[%clk 0:02:56]}  Nf6 {[%clk 0:02:55]} 3. Nc3 {[%clk 0:02:56]}  c6 {[%clk 0:02:55]} 4. Nf3 {[%clk 0:02:55]}  Bg4 {[%clk 0:02:54]} 5. h3 {[%clk 0:02:54]}  Bh5 {[%clk 0:02:54]} 6. Be2 {[%clk 0:02:54]}  e6 {[%clk 0:02:54]} 7. Be3 {[%clk 0:02:54]}  d5 {[%clk 0:02:54]} 8. exd5 {[%clk 0:02:54]}  cxd5 {[%clk 0:02:54]} 9. Qd2 {[%clk 0:02:51]}  Nc6 {[%clk 0:02:54]} 10. a3 {[%clk 0:02:51]}  a6 {[%clk 0:02:52]} 11. O-O {[%clk 0:02:49]}  Bd6 {[%clk 0:02:51]} 12. Rfe1 {[%clk 0:02:48]}  O-O {[%clk 0:02:49]} 13. Bf4 {[%clk 0:02:47]}  Rc8 {[%clk 0:02:48]} 14. Bxd6 {[%clk 0:02:45]}  Qxd6 {[%clk 0:02:47]} 15. Ne5 {[%clk 0:02:43]}  Nxe5 {[%clk 0:02:25]} 16. dxe5 {[%clk 0:02:38]}  Qxe5 {[%clk 0:02:24]} 17. Bxa6 {[%clk 0:02:33]}  Qc7 {[%clk 0:02:14]} 18. Bd3 {[%clk 0:02:31]}  Bg6 {[%clk 0:02:09]} 19. Bxg6 {[%clk 0:02:27]}  hxg6 {[%clk 0:02:09]} 20. Rac1 {[%clk 0:02:20]}  Rfd8 {[%clk 0:02:09]} 21. Nb5 {[%clk 0:02:19]}  Qc5 {[%clk 0:02:07]} 22. Nd4 {[%clk 0:02:15]}  Re8 {[%clk 0:02:03]} 23. c3 {[%clk 0:02:09]}  Ne4 {[%clk 0:02:00]} 24. Qd3 {[%clk 0:02:07]}  e5 {[%clk 0:01:58]} 25. Nf3 {[%clk 0:02:05]}  b5 {[%clk 0:01:56]} 26. Rcd1 {[%clk 0:02:03]}  Nxf2 {[%clk 0:01:50]} 27. Qxd5 {[%clk 0:01:50]}  Nxd1+ {[%clk 0:01:38]} 28. Qxc5 {[%clk 0:01:48]}  Rxc5 {[%clk 0:01:37]} 29. Rxd1 {[%clk 0:01:48]}  e4 {[%clk 0:01:37]} 30. Nd4 {[%clk 0:01:47]}  e3 {[%clk 0:01:37]} 31. Kf1 {[%clk 0:01:45]}  f5 {[%clk 0:01:29]} 32. Ke2 {[%clk 0:01:44]}  f4 {[%clk 0:01:28]} 33. Nf3 {[%clk 0:01:43]}  Re7 {[%clk 0:01:16]} 34. Rd4 {[%clk 0:01:42]}  g5 {[%clk 0:01:16]} 35. a4 {[%clk 0:01:35]}  bxa4 {[%clk 0:01:14]} 36. Rxa4 {[%clk 0:01:35]}  Rd5 {[%clk 0:01:11]} 37. Ra8+ {[%clk 0:01:24]}  Kh7 {[%clk 0:01:10]} 38. Rb8 {[%clk 0:01:17]}  Red7 {[%clk 0:01:08]} 39. Rb6 {[%clk 0:01:08]}  Rd2+ {[%clk 0:01:07]} 40. Nxd2 {[%clk 0:01:07]}  Rxd2+ {[%clk 0:01:05]} 41. Kf3 {[%clk 0:01:06]}  Rf2+ {[%clk 0:01:04]} 42. Kg4 {[%clk 0:00:59]}  Rxg2+ {[%clk 0:01:04]} 43. Kh5 {[%clk 0:00:57]}  e2 {[%clk 0:00:59]} 44. Re6 {[%clk 0:00:53]}  f3 {[%clk 0:00:59]} 45. b4 {[%clk 0:00:51]}  f2 {[%clk 0:00:57]} 46. b5 {[%clk 0:00:48]}  f1=Q {[%clk 0:00:56]} 47. Re3 {[%clk 0:00:42]}  e1=Q {[%clk 0:00:53]} 0-1


[Site "https://www.chess.com"]

[Event "Titled Tuesday Blitz May 9 Late 2023"]
[White "Bashkansky, Ethan"]
[Black "Phillips, Rene"]
[WhiteFideId "2071533"]
[BlackFideId "2056275"]
[WhiteElo "2351"]
[BlackElo "2188"]
[Result "1-0"]
[Round "05"]
[TimeControl "180+2"]
[Date "2023.05.09"]
[WhiteClock "0:00:14"]
[BlackClock "0:00:00"]

1. d4 {[%clk 0:02:59]}  Nc6 {[%clk 0:03:00]} 2. Nf3 {[%clk 0:02:58]}  d5 {[%clk 0:02:57]} 3. Bf4 {[%clk 0:02:54]}  Bg4 {[%clk 0:02:56]} 4. e3 {[%clk 0:02:53]}  a6 {[%clk 0:02:55]} 5. h3 {[%clk 0:02:49]}  Bxf3 {[%clk 0:02:52]} 6. Qxf3 {[%clk 0:02:50]}  Nf6 {[%clk 0:02:51]} 7. c4 {[%clk 0:02:46]}  e6 {[%clk 0:02:51]} 8. Nc3 {[%clk 0:02:46]}  Bd6 {[%clk 0:02:48]} 9. Bd3 {[%clk 0:02:34]}  dxc4 {[%clk 0:02:47]} 10. Bxc4 {[%clk 0:02:35]}  O-O {[%clk 0:02:44]} 11. O-O {[%clk 0:02:34]}  Bxf4 {[%clk 0:02:38]} 12. Qxf4 {[%clk 0:02:33]}  Qd6 {[%clk 0:02:39]} 13. Qxd6 {[%clk 0:02:33]}  cxd6 {[%clk 0:02:39]} 14. Bb3 {[%clk 0:02:29]}  Na5 {[%clk 0:02:37]} 15. Bc2 {[%clk 0:02:28]}  d5 {[%clk 0:02:32]} 16. Rac1 {[%clk 0:02:27]}  Rac8 {[%clk 0:02:31]} 17. Bd3 {[%clk 0:02:25]}  Nc4 {[%clk 0:02:28]} 18. Rc2 {[%clk 0:02:19]}  Rc7 {[%clk 0:02:23]} 19. Rfc1 {[%clk 0:02:18]}  Rfc8 {[%clk 0:02:23]} 20. Na4 {[%clk 0:02:14]}  Ne8 {[%clk 0:01:50]} 21. Kf1 {[%clk 0:01:36]}  Kf8 {[%clk 0:01:28]} 22. Ke2 {[%clk 0:01:33]}  Ke7 {[%clk 0:01:27]} 23. h4 {[%clk 0:01:21]}  Kd8 {[%clk 0:01:21]} 24. g3 {[%clk 0:01:20]}  g6 {[%clk 0:01:09]} 25. a3 {[%clk 0:01:18]}  b5 {[%clk 0:00:49]} 26. Nc5 {[%clk 0:01:15]}  a5 {[%clk 0:00:47]} 27. Rb1 {[%clk 0:01:08]}  Ned6 {[%clk 0:00:29]} 28. h5 {[%clk 0:00:55]}  a4 {[%clk 0:00:23]} 29. h6 {[%clk 0:00:41]}  Na5 {[%clk 0:00:20]} 30. g4 {[%clk 0:00:35]}  Nb3 {[%clk 0:00:16]} 31. g5 {[%clk 0:00:12]}  Nxc5 {[%clk 0:00:14]} 32. dxc5 {[%clk 0:00:13]}  Rxc5 {[%clk 0:00:14]} 33. Rbc1 {[%clk 0:00:14]}  Rxc2+ {[%clk 0:00:13]} 34. Rxc2 {[%clk 0:00:15]}  Nc4 {[%clk 0:00:13]} 35. f4 {[%clk 0:00:12]}  Nd6 {[%clk 0:00:10]} 36. Kd2 {[%clk 0:00:08]}  Rxc2+ {[%clk 0:00:10]} 37. Kxc2 {[%clk 0:00:09]}  Nc4 {[%clk 0:00:09]} 38. e4 {[%clk 0:00:05]}  Ne3+ {[%clk 0:00:08]} 39. Kc3 {[%clk 0:00:04]}  Nc4 {[%clk 0:00:08]} 40. exd5 {[%clk 0:00:04]}  exd5 {[%clk 0:00:07]} 41. Bxc4 {[%clk 0:00:04]}  bxc4 {[%clk 0:00:06]} 42. Kd4 {[%clk 0:00:04]}  Kd7 {[%clk 0:00:04]} 43. Kxd5 {[%clk 0:00:05]}  c3 {[%clk 0:00:04]} 44. bxc3 {[%clk 0:00:05]}  Ke7 {[%clk 0:00:03]} 45. Kc6 {[%clk 0:00:03]}  f6 {[%clk 0:00:04]} 46. gxf6+ {[%clk 0:00:02]}  Kxf6 {[%clk 0:00:05]} 47. c4 {[%clk 0:00:03]}  Kf5 {[%clk 0:00:06]} 48. c5 {[%clk 0:00:04]}  Kxf4 {[%clk 0:00:06]} 49. Kb5 {[%clk 0:00:05]}  g5 {[%clk 0:00:06]} 50. c6 {[%clk 0:00:05]}  g4 {[%clk 0:00:07]} 51. c7 {[%clk 0:00:06]}  g3 {[%clk 0:00:08]} 52. c8=Q {[%clk 0:00:07]}  g2 {[%clk 0:00:09]} 53. Qc1+ {[%clk 0:00:07]}  Kf3 {[%clk 0:00:09]} 54. Qg1 {[%clk 0:00:08]}  Kg3 {[%clk 0:00:08]} 55. Kxa4 {[%clk 0:00:09]}  Kh3 {[%clk 0:00:08]} 56. Kb4 {[%clk 0:00:09]}  Kg3 {[%clk 0:00:09]} 57. a4 {[%clk 0:00:10]}  Kf4 {[%clk 0:00:09]} 58. a5 {[%clk 0:00:11]}  Kg5 {[%clk 0:00:09]} 59. a6 {[%clk 0:00:12]}  Kxh6 {[%clk 0:00:09]} 60. a7 {[%clk 0:00:13]}  Kg7 {[%clk 0:00:00]} 61. a8=Q {[%clk 0:00:14]} 1-0


[Site "https://www.chess.com"]